[Event "44th Chess Olympiad Women 2022"]
[Site "Chennai"]
[Date "2022.08.03"]
[Round "6.42"]
[White "El Flow, Khuloud"]
[Black "Granados Ortiz, Maria Jose"]
[Result "0-1"]
[WhiteElo "1836"]
[BlackElo "1753"]
[Annotator "NA RC"]
[PlyCount "150"]
[EventDate "2022.??.??"]
[TimeControl "60"]

1. e4 {[%emt 0:00:01]} Nf6 {[%emt 0:00:02]} 2. e5 {[%emt 0:00:09]} Nd5 {
[%emt 0:00:02]} 3. d4 {[%emt 0:00:20]} d6 {[%emt 0:00:06]} 4. Bc4 {[%emt 0:00:
00]} Nb6 {[%emt 0:00:07]} 5. Bd3 {[%emt 0:01:44]} dxe5 {[%emt 0:00:09]} 6. dxe5
{[%emt 0:00:24]} Nc6 {[%emt 0:00:13]} 7. f4 {[%emt 0:02:32]} Qd5 {[%emt 0:00:
00]} 8. Qf3 {[%emt 0:03:05]} Qxf3 {[%emt 0:01:15]} 9. Nxf3 {[%emt 0:00:01]} Bg4
{[%emt 0:00:23]} 10. O-O {[%emt 0:01:42]} O-O-O {[%emt 0:07:35]} 11. Ng5 {
[%emt 0:02:33]} Bh5 {[%emt 0:01:26]} 12. h3 {[%emt 0:12:59]} h6 {[%emt 0:01:42]
} 13. Ne4 {[%emt 0:13:36]} Nb4 {[%emt 0:30:42]} 14. Nf2 {[%emt 0:07:37]} Nxd3 {
[%emt 0:00:32]} 15. cxd3 {[%emt 0:02:01]} Be2 {[%emt 0:00:50]} 16. Re1 {
[%emt 0:00:21]} Bxd3 {[%emt 0:00:51]} 17. Re3 {[%emt 0:01:38]} Bb5 {[%emt 0:00:
00]} 18. Nc3 {[%emt 0:00:59]} Bc6 {[%emt 0:00:26]} 19. b3 {[%emt 0:05:13]} e6 {
[%emt 0:00:25]} 20. Rd3 {[%emt 0:01:15]} Bc5 {[%emt 0:01:03]} 21. Rd1 {[%emt 0:
00:00]} Rxd1+ {[%emt 0:09:23]} 22. Ncxd1 {[%emt 0:00:13]} Rd8 {[%emt 0:00:07]}
23. Be3 {[%emt 0:01:39]} Bxe3 {[%emt 0:05:11]} 24. Nxe3 {[%emt 0:00:01]} Nd5 {
[%emt 0:00:01]} 25. Nxd5 {[%emt 0:00:53]} Rxd5 {[%emt 0:00:37]} 26. Rd1 {
[%emt 0:00:18]} Kd7 {[%emt 0:02:46]} 27. Kf1 {[%emt 0:02:15]} Bb5+ {[%emt 0:00:
00]} 28. Ke1 {[%emt 0:00:48]} Kc6 {[%emt 0:06:46]} 29. g3 {[%emt 0:04:20]}
Rxd1+ {[%emt 0:04:56]} 30. Kxd1 {[%emt 0:01:13]} Kc5 {[%emt 0:02:02]} 31. a3 {
[%emt 0:00:28]} Kd4 {[%emt 0:00:24]} 32. Kd2 {[%emt 0:00:22]} Bc6 {[%emt 0:00:
00]} 33. h4 {[%emt 0:03:03]} a5 {[%emt 0:03:02]} 34. Nd1 {[%emt 0:03:31]} Bd5 {
[%emt 0:04:39]} 35. Nc3 {[%emt 0:04:48]} c6 {[%emt 0:00:33]} 36. b4 {[%emt 0:
00:00]} axb4 {[%emt 0:00:15]} 37. axb4 {[%emt 0:00:01]} Kc4 {[%emt 0:02:25]}
38. Na2 {[%emt 0:00:26]} Kb3 {[%emt 0:00:18]} 39. Nc3 {[%emt 0:02:18]} Kxb4 {
[%emt 0:00:16]} 40. Kd3 {[%emt 0:00:19]} b5 {[%emt 0:00:48]} 41. g4 {[%emt 0:
00:00]} Bf3 {[%emt 0:33:08]} 42. g5 {[%emt 0:00:46]} h5 {[%emt 0:01:33]} 43. f5
{[%emt 0:02:48]} Bg4 {[%emt 0:02:26]} 44. f6 {[%emt 0:02:35]} Bf5+ {[%emt 0:00:
00]} 45. Kd2 {[%emt 0:00:00]} g6 {[%emt 0:00:00]} 46. Ne2 {[%emt 0:00:00]} Kc4
{[%emt 0:00:00]} 47. Ng3 {[%emt 0:00:00]} Kd5 {[%emt 0:00:00]} 48. Kc3 {
[%emt 0:00:00]} Kxe5 {[%emt 0:00:00]} 49. Kb4 {[%emt 0:00:00]} Kd5 {[%emt 0:00:
00]} 50. Ne2 {[%emt 0:00:00]} c5+ {[%emt 0:00:00]} 51. Kb3 {[%emt 0:00:00]} b4
{[%emt 0:00:00]} 52. Nc1 {[%emt 0:00:00]} e5 {[%emt 0:00:00]} 53. Ne2 {[%emt 0:
00:00]} Be6 {[%emt 0:00:00]} 54. Ng3 {[%emt 0:00:00]} Kd4+ {[%emt 0:00:00]} 55.
Kc2 {[%emt 0:00:00]} b3+ {[%emt 0:00:00]} 56. Kd2 {[%emt 0:00:00]} Bc4 {
[%emt 0:01:33]} 57. Kc1 {[%emt 0:00:00]} Ke3 {[%emt 0:01:41]} 58. Kb2 {[%emt 0:
00:00]} Kf3 {[%emt 0:00:24]} 59. Kc3 {[%emt 0:00:00]} Kxg3 {[%emt 0:00:08]} 60.
Kxc4 {[%emt 0:00:00]} b2 {[%emt 0:00:09]} 61. Kxc5 {[%emt 0:00:00]} b1=Q {
[%emt 0:00:10]} 62. Kd6 {[%emt 0:00:00]} Qb4+ {[%emt 0:01:45]} 63. Kxe5 {
[%emt 0:00:00]} Qb6 {[%emt 0:00:00]} 64. Ke4 {[%emt 0:00:00]} Qe6+ {[%emt 0:00:
00]} 65. Kd4 {[%emt 0:00:00]} Kf4 {[%emt 0:00:00]} 66. Kc5 {[%emt 0:00:00]} Qd7
{[%emt 0:00:00]} 67. Kc4 {[%emt 0:00:00]} Qd6 {[%emt 0:00:00]} 68. Kc3 {
[%emt 0:00:00]} Ke3 {[%emt 0:00:00]} 69. Kc4 {[%emt 0:00:00]} Qd4+ {[%emt 0:00:
00]} 70. Kb5 {[%emt 0:00:00]} Qc3 {[%emt 0:00:02]} 71. Kb6 {[%emt 0:00:00]} Kd4
{[%emt 0:00:06]} 72. Kb7 {[%emt 0:00:00]} Kd5 {[%emt 0:00:20]} 73. Kb8 {
[%emt 0:00:00]} Kd6 {[%emt 0:00:01]} 74. Kb7 {[%emt 0:00:00]} Qc5 {[%emt 0:00:
00]} 75. Ka6 {[%emt 0:00:00]} Qb4 {[%emt 0:00:05]} 0-1

[Event "44th Chess Olympiad Women 2022"]
[Site "Chennai"]
[Date "2022.08.03"]
[Round "6.42"]
[White "Elfelo, Eklas"]
[Black "Ferrufino, Michelle"]
[Result "0-1"]
[WhiteElo "1562"]
[BlackElo "1811"]
[Annotator "NA RC"]
[PlyCount "136"]
[EventDate "2022.??.??"]
[TimeControl "60"]

1. e4 {[%emt 0:00:02]} d5 {[%emt 0:00:23]} 2. exd5 {[%emt 0:00:05]} Qxd5 {
[%emt 0:00:12]} 3. Nc3 {[%emt 0:00:04]} Qd6 {[%emt 0:00:15]} 4. d4 {[%emt 0:00:
00]} Nf6 {[%emt 0:00:22]} 5. Nf3 {[%emt 0:00:15]} c6 {[%emt 0:00:13]} 6. Bd3 {
[%emt 0:01:44]} Bg4 {[%emt 0:00:35]} 7. Be3 {[%emt 0:01:13]} Nbd7 {[%emt 0:00:
00]} 8. h3 {[%emt 0:01:38]} Bh5 {[%emt 0:00:39]} 9. Ne4 {[%emt 0:06:17]} Nxe4 {
[%emt 0:01:32]} 10. Bxe4 {[%emt 0:00:09]} e6 {[%emt 0:00:49]} 11. c4 {[%emt 0:
00:00]} Qb4+ {[%emt 0:01:25]} 12. Qd2 {[%emt 0:05:39]} Qxc4 {[%emt 0:00:43]}
13. Bd3 {[%emt 0:03:02]} Qb4 {[%emt 0:00:43]} 14. Qxb4 {[%emt 0:01:56]} Bxb4+ {
[%emt 0:00:14]} 15. Bd2 {[%emt 0:00:06]} Bxd2+ {[%emt 0:00:53]} 16. Nxd2 {
[%emt 0:00:03]} Rd8 {[%emt 0:02:10]} 17. g4 {[%emt 0:03:50]} Bg6 {[%emt 0:00:
00]} 18. Bxg6 {[%emt 0:00:03]} hxg6 {[%emt 0:00:11]} 19. O-O-O {[%emt 0:11:14]}
Nf6 {[%emt 0:02:44]} 20. g5 {[%emt 0:01:25]} Nd5 {[%emt 0:00:53]} 21. Nf3 {
[%emt 0:05:20]} Ke7 {[%emt 0:04:21]} 22. Kc2 {[%emt 0:01:40]} Rd6 {[%emt 0:00:
00]} 23. h4 {[%emt 0:00:47]} Nf4 {[%emt 0:02:02]} 24. Kc3 {[%emt 0:04:25]} Rhd8
{[%emt 0:01:11]} 25. a4 {[%emt 0:03:31]} c5 {[%emt 0:02:07]} 26. Kc4 {[%emt 0:
00:00]} cxd4 {[%emt 0:01:25]} 27. Rxd4 {[%emt 0:02:19]} Rc8+ {[%emt 0:01:54]}
28. Kb3 {[%emt 0:00:49]} Rb6+ {[%emt 0:01:27]} 29. Ka3 {[%emt 0:02:57]} Nd5 {
[%emt 0:01:28]} 30. a5 {[%emt 0:01:25]} Rb5 {[%emt 0:01:01]} 31. b4 {[%emt 0:
00:00]} Rc3+ {[%emt 0:00:59]} 32. Ka4 {[%emt 0:00:54]} Rxb4+ {[%emt 0:02:18]}
33. Rxb4 {[%emt 0:00:19]} Nxb4 {[%emt 0:00:11]} 34. Kxb4 {[%emt 0:00:54]} Rxf3
{[%emt 0:00:10]} 35. Rh2 {[%emt 0:00:24]} Kd6 {[%emt 0:00:30]} 36. Kb5 {
[%emt 0:01:27]} Rf5+ {[%emt 0:00:55]} 37. Kb4 {[%emt 0:02:14]} Kc6 {[%emt 0:00:
00]} 38. Ka4 {[%emt 0:05:18]} Rf4+ {[%emt 0:00:17]} 39. Kb3 {[%emt 0:00:46]}
Kb5 {[%emt 0:00:11]} 40. h5 {[%emt 0:01:51]} gxh5 {[%emt 0:00:22]} 41. Rxh5 {
[%emt 0:30:20]} g6 {[%emt 0:30:15]} 42. Rh2 {[%emt 0:00:59]} Kxa5 {[%emt 0:00:
00]} 43. Kc3 {[%emt 0:00:33]} b5 {[%emt 0:00:17]} 44. Kd3 {[%emt 0:00:38]} b4 {
[%emt 0:00:45]} 45. Ke3 {[%emt 0:00:02]} Rf5 {[%emt 0:00:13]} 46. f4 {[%emt 0:
00:00]} b3 {[%emt 0:01:01]} 47. Rh1 {[%emt 0:00:00]} b2 {[%emt 0:00:00]} 48.
Rb1 {[%emt 0:00:00]} Rb5 {[%emt 0:00:00]} 49. Kd3 {[%emt 0:00:00]} Kb6 {
[%emt 0:00:00]} 50. Kc2 {[%emt 0:00:00]} a5 {[%emt 0:00:00]} 51. Rxb2 {[%emt 0:
00:00]} Rxb2+ {[%emt 0:00:00]} 52. Kxb2 {[%emt 0:00:00]} Kc5 {[%emt 0:00:00]}
53. Kc3 {[%emt 0:00:00]} a4 {[%emt 0:00:00]} 54. Kb2 {[%emt 0:00:00]} Kd4 {
[%emt 0:00:00]} 55. Ka3 {[%emt 0:00:00]} Ke4 {[%emt 0:00:00]} 56. Kxa4 {
[%emt 0:00:00]} Kxf4 {[%emt 0:00:00]} 57. Kb4 {[%emt 0:00:00]} Kxg5 {[%emt 0:
00:00]} 58. Kc4 {[%emt 0:00:00]} Kf4 {[%emt 0:00:00]} 59. Kd3 {[%emt 0:00:00]}
Kf3 {[%emt 0:00:00]} 60. Kd2 {[%emt 0:00:00]} Kf2 {[%emt 0:00:00]} 61. Kd3 {
[%emt 0:00:00]} g5 {[%emt 0:00:00]} 62. Ke4 {[%emt 0:00:00]} g4 {[%emt 0:00:00]
} 63. Ke5 {[%emt 0:00:00]} g3 {[%emt 0:00:00]} 64. Kf6 {[%emt 0:00:00]} g2 {
[%emt 0:00:00]} 65. Kxf7 {[%emt 0:00:00]} e5 {[%emt 0:00:00]} 66. Kf6 {[%emt 0:
00:00]} e4 {[%emt 0:00:00]} 67. Kf5 {[%emt 0:00:00]} e3 {[%emt 0:00:00]} 68.
Kg4 {[%emt 0:00:00]} g1=Q+ {[%emt 0:00:00]} 0-1

[Event "44th Chess Olympiad Women 2022"]
[Site "Chennai"]
[Date "2022.08.03"]
[Round "6.43"]
[White "Kaslan, Victoria"]
[Black "Abrorova, Sabrina"]
[Result "0-1"]
[WhiteElo "1477"]
[BlackElo "1799"]
[Annotator "NA RC"]
[PlyCount "84"]
[EventDate "2022.??.??"]
[TimeControl "60"]

1. e4 {[%emt 0:00:17]} c5 {[%emt 0:00:22]} 2. Nf3 {[%emt 0:00:10]} d6 {[%emt 0:
00:00]} 3. d4 {[%emt 0:00:20]} cxd4 {[%emt 0:00:22]} 4. Nxd4 {[%emt 0:00:22]}
Nf6 {[%emt 0:00:21]} 5. Nc3 {[%emt 0:00:31]} a6 {[%emt 0:00:26]} 6. Be3 {
[%emt 0:00:14]} e5 {[%emt 0:00:39]} 7. Nb3 {[%emt 0:00:36]} Be6 {[%emt 0:00:41]
} 8. Be2 {[%emt 0:00:45]} Be7 {[%emt 0:01:09]} 9. f3 {[%emt 0:00:59]} Nbd7 {
[%emt 0:01:48]} 10. Nd5 {[%emt 0:02:12]} Bxd5 {[%emt 0:03:37]} 11. exd5 {
[%emt 0:00:56]} Nh5 {[%emt 0:12:32]} 12. g3 {[%emt 0:15:32]} O-O {[%emt 0:00:
00]} 13. Qd2 {[%emt 0:03:19]} Rc8 {[%emt 0:02:22]} 14. c4 {[%emt 0:03:50]} f5 {
[%emt 0:03:56]} 15. Bf2 {[%emt 0:14:12]} Kh8 {[%emt 0:22:33]} 16. Qb4 {[%emt 0:
00:00]} Qc7 {[%emt 0:15:01]} 17. Qa5 {[%emt 0:08:04]} Qb8 {[%emt 0:06:17]} 18.
Qb4 {[%emt 0:02:33]} Qc7 {[%emt 0:03:58]} 19. Qa5 {[%emt 0:02:51]} Qb8 {
[%emt 0:02:09]} 20. Rc1 {[%emt 0:02:34]} Nhf6 {[%emt 0:01:34]} 21. Nd2 {
[%emt 0:01:27]} Bd8 {[%emt 0:06:50]} 22. Qa4 {[%emt 0:06:16]} Nc5 {[%emt 0:00:
00]} 23. Qd1 {[%emt 0:00:58]} a5 {[%emt 0:00:48]} 24. Nb1 {[%emt 0:03:44]} Qc7
{[%emt 0:03:58]} 25. Nc3 {[%emt 0:00:32]} Qe7 {[%emt 0:00:27]} 26. Bxc5 {
[%emt 0:05:24]} Rxc5 {[%emt 0:00:17]} 27. Kd2 {[%emt 0:07:13]} e4 {[%emt 0:00:
00]} 28. Re1 {[%emt 0:00:14]} exf3 {[%emt 0:01:12]} 29. Bxf3 {[%emt 0:00:57]}
Qf7 {[%emt 0:00:32]} 30. b3 {[%emt 0:00:32]} Nd7 {[%emt 0:00:27]} 31. Kc2 {
[%emt 0:01:00]} Bg5 {[%emt 0:00:11]} 32. Rb1 {[%emt 0:00:21]} Ne5 {[%emt 0:00:
00]} 33. Be2 {[%emt 0:00:33]} Bf6 {[%emt 0:00:52]} 34. Rf1 {[%emt 0:00:28]} b5
{[%emt 0:00:29]} 35. cxb5 {[%emt 0:01:24]} Ng4 {[%emt 0:00:26]} 36. Bxg4 {
[%emt 0:00:26]} Rxc3+ {[%emt 0:00:22]} 37. Kd2 {[%emt 0:00:05]} Qxd5+ {[%emt 0:
00:00]} 38. Ke1 {[%emt 0:00:09]} Rd3 {[%emt 0:00:49]} 39. Qe2 {[%emt 0:01:18]}
fxg4 {[%emt 0:00:18]} 40. Rf4 {[%emt 0:00:18]} Bc3+ {[%emt 0:00:43]} 41. Kf2 {
[%emt 0:30:15]} Rxf4+ {[%emt 0:30:19]} 42. gxf4 {[%emt 0:00:35]} Rf3+ {[%emt 0:
00:00]} 0-1

[Event "44th Chess Olympiad Women 2022"]
[Site "Chennai"]
[Date "2022.08.03"]
[Round "6.43"]
[White "Saidova, Rukhshona"]
[Black "Kaslan, Alexandra"]
[Result "1-0"]
[WhiteElo "1624"]
[BlackElo "1435"]
[Annotator "NA RC"]
[PlyCount "75"]
[EventDate "2022.??.??"]
[TimeControl "60"]

1. e4 {[%emt 0:00:13]} e6 {[%emt 0:00:15]} 2. d4 {[%emt 0:00:14]} d5 {[%emt 0:
00:00]} 3. Nc3 {[%emt 0:00:21]} Nf6 {[%emt 0:00:35]} 4. Bg5 {[%emt 0:00:25]}
Be7 {[%emt 0:00:31]} 5. e5 {[%emt 0:00:38]} Nfd7 {[%emt 0:00:48]} 6. Bxe7 {
[%emt 0:00:24]} Qxe7 {[%emt 0:00:44]} 7. Bd3 {[%emt 0:00:53]} a6 {[%emt 0:00:
00]} 8. Qg4 {[%emt 0:06:09]} g6 {[%emt 0:01:56]} 9. Nf3 {[%emt 0:05:19]} c5 {
[%emt 0:00:59]} 10. dxc5 {[%emt 0:04:13]} Nxc5 {[%emt 0:00:51]} 11. Nxd5 {
[%emt 0:02:13]} Nxd3+ {[%emt 0:04:45]} 12. cxd3 {[%emt 0:00:17]} Qc5 {[%emt 0:
00:00]} 13. Nf6+ {[%emt 0:02:14]} Kf8 {[%emt 0:06:34]} 14. O-O {[%emt 0:01:09]}
Nd7 {[%emt 0:07:38]} 15. Qf4 {[%emt 0:04:18]} Kg7 {[%emt 0:13:43]} 16. Rac1 {
[%emt 0:03:18]} Qe7 {[%emt 0:04:03]} 17. Nxd7 {[%emt 0:23:39]} Bxd7 {[%emt 0:
00:00]} 18. Rc7 {[%emt 0:02:30]} Rhd8 {[%emt 0:02:01]} 19. Rxb7 {[%emt 0:06:45]
} Rab8 {[%emt 0:03:14]} 20. Rxb8 {[%emt 0:04:58]} Rxb8 {[%emt 0:00:29]} 21. b3
{[%emt 0:01:29]} h6 {[%emt 0:01:29]} 22. h4 {[%emt 0:02:52]} Rb4 {[%emt 0:00:
00]} 23. d4 {[%emt 0:06:01]} Bc6 {[%emt 0:01:11]} 24. Rc1 {[%emt 0:02:06]} Bd5
{[%emt 0:04:42]} 25. Rc8 {[%emt 0:04:10]} Rb7 {[%emt 0:04:16]} 26. Nh2 {
[%emt 0:06:16]} g5 {[%emt 0:04:54]} 27. Qg4 {[%emt 0:03:41]} f5 {[%emt 0:03:38]
} 28. exf6+ {[%emt 0:01:52]} Qxf6 {[%emt 0:00:25]} 29. Rc3 {[%emt 0:01:41]} Qf5
{[%emt 0:01:13]} 30. hxg5 {[%emt 0:00:55]} hxg5 {[%emt 0:02:45]} 31. Qh5 {
[%emt 0:00:53]} Rf7 {[%emt 0:01:40]} 32. Qe2 {[%emt 0:00:43]} Qb1+ {[%emt 0:00:
00]} 33. Nf1 {[%emt 0:00:20]} Rf4 {[%emt 0:02:00]} 34. Qe5+ {[%emt 0:01:15]}
Kg6 {[%emt 0:00:43]} 35. Rc8 {[%emt 0:01:17]} Rf6 {[%emt 0:01:15]} 36. Rg8+ {
[%emt 0:00:18]} Kf7 {[%emt 0:00:10]} 37. Qxg5 {[%emt 0:01:00]} Rf5 {[%emt 0:00:
00]} 38. Qg7# {[%emt 0:00:20]} 1-0

[Event "44th Chess Olympiad Women 2022"]
[Site "Chennai"]
[Date "2022.08.03"]
[Round "6.44"]
[White "Badenhorst, Chloe"]
[Black "Paul, Theophane"]
[Result "1-0"]
[WhiteElo "1703"]
[BlackElo "1493"]
[Annotator "NA RC"]
[PlyCount "65"]
[EventDate "2022.??.??"]
[TimeControl "60"]

1. e4 {[%emt 0:00:02]} c6 {[%emt 0:00:05]} 2. d4 {[%emt 0:00:05]} d5 {[%emt 0:
00:00]} 3. e5 {[%emt 0:00:03]} c5 {[%emt 0:00:14]} 4. dxc5 {[%emt 0:00:10]} e6
{[%emt 0:00:10]} 5. a3 {[%emt 0:00:12]} Bxc5 {[%emt 0:04:15]} 6. b4 {[%emt 0:
00:00]} Bb6 {[%emt 0:02:44]} 7. Nf3 {[%emt 0:00:39]} Nd7 {[%emt 0:01:18]} 8.
Bb2 {[%emt 0:00:35]} Ne7 {[%emt 0:02:31]} 9. Bd3 {[%emt 0:01:44]} O-O {[%emt 0:
00:00]} 10. Bxh7+ {[%emt 0:20:31]} Kh8 {[%emt 0:35:24]} 11. Bd3 {[%emt 0:02:32]
} Ng8 {[%emt 0:05:06]} 12. Nbd2 {[%emt 0:03:33]} Bc7 {[%emt 0:05:22]} 13. Nb3 {
[%emt 0:02:16]} b6 {[%emt 0:01:08]} 14. h4 {[%emt 0:01:21]} f6 {[%emt 0:03:42]}
15. exf6 {[%emt 0:09:06]} Ndxf6 {[%emt 0:00:51]} 16. Ne5 {[%emt 0:03:46]} Bxe5
{[%emt 0:02:56]} 17. Bxe5 {[%emt 0:02:15]} Qe7 {[%emt 0:03:59]} 18. g4 {
[%emt 0:11:31]} Nd7 {[%emt 0:03:44]} 19. Bb2 {[%emt 0:01:29]} e5 {[%emt 0:00:
00]} 20. g5 {[%emt 0:03:01]} e4 {[%emt 0:01:25]} 21. Qh5+ {[%emt 0:01:29]} Nh6
{[%emt 0:00:18]} 22. O-O-O {[%emt 0:13:08]} Qf7 {[%emt 0:06:28]} 23. Qxh6+ {
[%emt 0:02:28]} Kg8 {[%emt 0:00:38]} 24. Qc6 {[%emt 0:01:23]} Qf4+ {[%emt 0:00:
00]} 25. Kb1 {[%emt 0:01:45]} exd3 {[%emt 0:02:46]} 26. Qxd5+ {[%emt 0:01:12]}
Qf7 {[%emt 0:00:55]} 27. Qxd3 {[%emt 0:00:21]} Bb7 {[%emt 0:01:27]} 28. g6 {
[%emt 0:04:02]} Qf5 {[%emt 0:03:44]} 29. Qxd7 {[%emt 0:04:09]} Qxd7 {[%emt 0:
00:00]} 30. Rxd7 {[%emt 0:00:06]} Bxh1 {[%emt 0:01:09]} 31. Rxg7+ {[%emt 0:00:
00]} Kh8 {[%emt 0:00:44]} 32. Rh7+ {[%emt 0:00:05]} Kg8 {[%emt 0:00:34]} 33.
Rh8# {[%emt 0:00:08]} 1-0

[Event "44th Chess Olympiad Women 2022"]
[Site "Chennai"]
[Date "2022.08.03"]
[Round "6.44"]
[White "Bouah, Denise"]
[Black "Cadeau, Merisena"]
[Result "1-0"]
[WhiteElo "1736"]
[BlackElo "1439"]
[Annotator "NA RC"]
[PlyCount "97"]
[EventDate "2022.??.??"]
[TimeControl "60"]

1. e4 {[%emt 0:00:09]} e5 {[%emt 0:00:08]} 2. Nf3 {[%emt 0:00:05]} Nc6 {
[%emt 0:00:11]} 3. Bb5 {[%emt 0:00:06]} Nf6 {[%emt 0:00:21]} 4. d3 {[%emt 0:00:
00]} Bc5 {[%emt 0:00:54]} 5. Be3 {[%emt 0:07:49]} Bd6 {[%emt 0:01:14]} 6. O-O {
[%emt 0:04:10]} a6 {[%emt 0:00:34]} 7. Ba4 {[%emt 0:04:11]} O-O {[%emt 0:02:19]
} 8. c3 {[%emt 0:00:17]} b5 {[%emt 0:01:38]} 9. Bc2 {[%emt 0:00:31]} Re8 {
[%emt 0:00:25]} 10. h3 {[%emt 0:05:33]} Bf8 {[%emt 0:00:27]} 11. a4 {[%emt 0:
00:00]} Bb7 {[%emt 0:03:01]} 12. Nbd2 {[%emt 0:00:41]} d6 {[%emt 0:07:00]} 13.
Re1 {[%emt 0:01:04]} g6 {[%emt 0:03:59]} 14. Bg5 {[%emt 0:02:08]} Bg7 {[%emt 0:
00:00]} 15. Nh2 {[%emt 0:06:18]} Qd7 {[%emt 0:04:34]} 16. Qf3 {[%emt 0:07:13]}
Nh5 {[%emt 0:07:30]} 17. Ng4 {[%emt 0:07:28]} f5 {[%emt 0:10:28]} 18. Bb3+ {
[%emt 0:05:09]} Kh8 {[%emt 0:00:17]} 19. exf5 {[%emt 0:03:30]} Qxf5 {[%emt 0:
00:00]} 20. Qxf5 {[%emt 0:00:58]} gxf5 {[%emt 0:00:12]} 21. Bf7 {[%emt 0:05:35]
} fxg4 {[%emt 0:00:39]} 22. Bxh5 {[%emt 0:01:15]} Rf8 {[%emt 0:03:27]} 23. Bxg4
{[%emt 0:00:18]} h6 {[%emt 0:06:06]} 24. Bh4 {[%emt 0:02:40]} Bf6 {[%emt 0:00:
00]} 25. Bxf6+ {[%emt 0:01:29]} Rxf6 {[%emt 0:00:22]} 26. axb5 {[%emt 0:00:27]}
axb5 {[%emt 0:00:37]} 27. Rxa8+ {[%emt 0:00:21]} Bxa8 {[%emt 0:00:13]} 28. Bf3
{[%emt 0:02:11]} Bb7 {[%emt 0:01:08]} 29. Ra1 {[%emt 0:01:06]} Rf7 {[%emt 0:00:
00]} 30. Ra3 {[%emt 0:07:47]} Nd8 {[%emt 0:10:17]} 31. Bxb7 {[%emt 0:04:16]}
Nxb7 {[%emt 0:00:13]} 32. Nb3 {[%emt 0:01:33]} Nd8 {[%emt 0:13:27]} 33. Ra8 {
[%emt 0:00:53]} Rf8 {[%emt 0:00:10]} 34. Rb8 {[%emt 0:00:52]} c6 {[%emt 0:00:
00]} 35. Na5 {[%emt 0:00:38]} Kg7 {[%emt 0:00:15]} 36. Rb6 {[%emt 0:00:46]} d5
{[%emt 0:02:05]} 37. Nb7 {[%emt 0:02:53]} Nxb7 {[%emt 0:01:21]} 38. Rxb7+ {
[%emt 0:00:05]} Rf7 {[%emt 0:03:05]} 39. Rb6 {[%emt 0:02:46]} Rf6 {[%emt 0:00:
00]} 40. Kf1 {[%emt 0:00:27]} Kg6 {[%emt 0:01:14]} 41. Ke2 {[%emt 0:36:50]} d4
{[%emt 0:30:28]} 42. Rb8 {[%emt 0:00:00]} Kg7 {[%emt 0:00:00]} 43. Rd8 {
[%emt 0:00:00]} Kg6 {[%emt 0:00:00]} 44. cxd4 {[%emt 0:00:00]} exd4 {[%emt 0:
00:00]} 45. Rxd4 {[%emt 0:00:00]} Re6+ {[%emt 0:00:53]} 46. Re4 {[%emt 0:00:00]
} Rd6 {[%emt 0:04:11]} 47. Ke3 {[%emt 0:00:00]} c5 {[%emt 0:01:00]} 48. Re5 {
[%emt 0:00:00]} Rc6 {[%emt 0:00:32]} 49. g4 {[%emt 0:00:00]} 1-0

[Event "44th Chess Olympiad Women 2022"]
[Site "Chennai"]
[Date "2022.08.03"]
[Round "6.44"]
[White "Jonet, Davena"]
[Black "Selkirk, Rebecca"]
[Result "0-1"]
[WhiteElo "1458"]
[BlackElo "1745"]
[Annotator "NA RC"]
[PlyCount "64"]
[EventDate "2022.??.??"]
[TimeControl "60"]

1. e4 {[%emt 0:00:02]} e6 {[%emt 0:00:07]} 2. Nf3 {[%emt 0:00:16]} d5 {[%emt 0:
00:00]} 3. exd5 {[%emt 0:02:00]} exd5 {[%emt 0:00:07]} 4. d4 {[%emt 0:00:24]}
Nf6 {[%emt 0:00:37]} 5. Bd3 {[%emt 0:01:14]} Bg4 {[%emt 0:00:46]} 6. h3 {
[%emt 0:00:42]} Bh5 {[%emt 0:00:13]} 7. O-O {[%emt 0:01:14]} Be7 {[%emt 0:00:
00]} 8. Nbd2 {[%emt 0:02:04]} O-O {[%emt 0:00:23]} 9. Re1 {[%emt 0:00:22]} c5 {
[%emt 0:01:10]} 10. dxc5 {[%emt 0:05:10]} Bxc5 {[%emt 0:00:16]} 11. Nb3 {
[%emt 0:00:27]} Bb6 {[%emt 0:02:28]} 12. c3 {[%emt 0:01:11]} Nc6 {[%emt 0:00:
00]} 13. Be2 {[%emt 0:02:05]} Re8 {[%emt 0:04:26]} 14. Bg5 {[%emt 0:01:15]} Re6
{[%emt 0:10:41]} 15. Bxf6 {[%emt 0:11:52]} Rxf6 {[%emt 0:01:40]} 16. Nfd4 {
[%emt 0:03:48]} Bg6 {[%emt 0:02:07]} 17. Bf3 {[%emt 0:01:14]} Qd6 {[%emt 0:00:
00]} 18. Nb5 {[%emt 0:01:15]} Qd7 {[%emt 0:00:33]} 19. Re2 {[%emt 0:06:34]} a6
{[%emt 0:20:56]} 20. N5d4 {[%emt 0:00:39]} h6 {[%emt 0:01:40]} 21. Qd2 {
[%emt 0:05:29]} Bc7 {[%emt 0:03:09]} 22. Rae1 {[%emt 0:02:28]} Rd8 {[%emt 0:00:
00]} 23. a3 {[%emt 0:03:32]} a5 {[%emt 0:04:00]} 24. Bg4 {[%emt 0:02:42]} Qd6 {
[%emt 0:00:57]} 25. g3 {[%emt 0:02:26]} Bb6 {[%emt 0:00:47]} 26. h4 {[%emt 0:
00:00]} Be4 {[%emt 0:01:27]} 27. Kh2 {[%emt 0:03:39]} Bc7 {[%emt 0:02:40]} 28.
Rg1 {[%emt 0:06:51]} Ne5 {[%emt 0:01:50]} 29. Nb5 {[%emt 0:04:43]} Nxg4+ {
[%emt 0:00:30]} 30. Kh3 {[%emt 0:00:41]} Qd7 {[%emt 0:00:34]} 31. Nxc7 {
[%emt 0:02:36]} Nxf2+ {[%emt 0:00:16]} 32. Kh2 Qh3# {[%emt 0:00:30]} 0-1